[Event "*** Titled Tuesday Blitz"]
[Site "Chess.com"]
[Date "2020.11.10"]
[Round "10"]
[White "Sibelephant"]
[Black "VerdeNotte"]
[Result "0-1"]
[WhiteElo "3072"]
[BlackElo "2910"]
[TimeControl "180+1"]
[EndTime "12:03:36 PST"]
[Termination "VerdeNotte won by resignation"]

1. d4 {[%clk 0:02:59.6]} 1... Nf6 {[%clk 0:02:58.8]} 2. Nf3 {[%clk 0:03:00]}
2... g6 {[%clk 0:02:58.7]} 3. g3 {[%clk 0:03:00.6]} 3... Bg7 {[%clk 0:02:58.5]}
4. Bg2 {[%clk 0:03:01.1]} 4... O-O {[%clk 0:02:58.5]} 5. O-O {[%clk 0:03:01.4]}
5... d6 {[%clk 0:02:58.7]} 6. Nc3 {[%clk 0:03:01.5]} 6... d5 {[%clk 0:02:57.3]}
7. Re1 {[%clk 0:03:01.1]} 7... Ne4 {[%clk 0:02:49]} 8. Nxe4 {[%clk 0:02:59.3]}
8... dxe4 {[%clk 0:02:49.2]} 9. Ng5 {[%clk 0:02:59]} 9... Qxd4 {[%clk
0:02:49.1]} 10. Qxd4 {[%clk 0:02:44.9]} 10... Bxd4 {[%clk 0:02:50]} 11. c3
{[%clk 0:02:29.6]} 11... Bg7 {[%clk 0:02:49.7]} 12. Nxe4 {[%clk 0:02:29]} 12...
Na6 {[%clk 0:02:48.5]} 13. Be3 {[%clk 0:02:13.5]} 13... c6 {[%clk 0:02:38.4]}
14. Red1 {[%clk 0:01:54.2]} 14... Bg4 {[%clk 0:02:25.8]} 15. Kf1 {[%clk
0:01:51.6]} 15... Rfe8 {[%clk 0:02:13.6]} 16. Rd2 {[%clk 0:01:40.3]} 16... Be6
{[%clk 0:01:59]} 17. Ng5 {[%clk 0:01:34.4]} 17... Bf5 {[%clk 0:01:54.5]} 18. Nf3
{[%clk 0:01:31.5]} 18... Nc7 {[%clk 0:01:40.4]} 19. Nd4 {[%clk 0:01:28.2]} 19...
Bc8 {[%clk 0:01:40.1]} 20. Nb3 {[%clk 0:01:24.2]} 20... Bf6 {[%clk 0:01:22.1]}
21. Rad1 {[%clk 0:01:16.4]} 21... Ne6 {[%clk 0:01:22.1]} 22. Na5 {[%clk
0:01:13.8]} 22... Rf8 {[%clk 0:01:14.6]} 23. Bh3 {[%clk 0:01:03.6]} 23... Kg7
{[%clk 0:01:07.4]} 24. f4 {[%clk 0:00:51.6]} 24... h5 {[%clk 0:00:58.5]} 25. Bf2
{[%clk 0:00:49.6]} 25... g5 {[%clk 0:00:54.1]} 26. fxg5 {[%clk 0:00:30.8]} 26...
Bxg5 {[%clk 0:00:45.8]} 27. Rd3 {[%clk 0:00:21.1]} 27... Nc5 {[%clk 0:00:43.2]}
28. Bd4+ {[%clk 0:00:17.5]} 28... Bf6 {[%clk 0:00:31.3]} 29. Bxc8 {[%clk
0:00:13.7]} 29... Nxd3 {[%clk 0:00:26.5]} 30. Bxb7 {[%clk 0:00:14.1]} 30... Nxb2
{[%clk 0:00:26.1]} 31. Rb1 {[%clk 0:00:14.3]} 31... Bxd4 {[%clk 0:00:22.6]} 32.
cxd4 {[%clk 0:00:13.6]} 32... Na4 {[%clk 0:00:13.8]} 33. Bxa8 {[%clk 0:00:13.4]}
33... Rxa8 {[%clk 0:00:14]} 34. Nxc6 {[%clk 0:00:14.1]} 34... e6 {[%clk
0:00:13.4]} 35. Rb7 {[%clk 0:00:12.8]} 35... Nc3 {[%clk 0:00:12.9]} 36. a3
{[%clk 0:00:12.8]} 36... a5 {[%clk 0:00:07.2]} 37. Ne5 {[%clk 0:00:12.9]} 37...
a4 {[%clk 0:00:04.9]} 38. Rxf7+ {[%clk 0:00:12.7]} 38... Kg8 {[%clk 0:00:05.1]}
39. Rb7 {[%clk 0:00:12.9]} 39... Rd8 {[%clk 0:00:04.8]} 40. e3 {[%clk
0:00:12.6]} 40... Rc8 {[%clk 0:00:04.5]} 41. Ke1 {[%clk 0:00:12.2]} 41... Nd5
{[%clk 0:00:04.6]} 42. Kd2 {[%clk 0:00:12.6]} 42... Nc3 {[%clk 0:00:04.3]} 43.
Rb4 {[%clk 0:00:11.7]} 43... Ne4+ {[%clk 0:00:04.5]} 44. Kd3 {[%clk 0:00:12]}
44... Nf2+ {[%clk 0:00:04.9]} 45. Ke2 {[%clk 0:00:12.4]} 45... Rc2+ {[%clk
0:00:04.6]} 46. Kf3 {[%clk 0:00:13]} 46... Nd1 {[%clk 0:00:04.3]} 47. Rxa4
{[%clk 0:00:13.3]} 47... Rf2+ {[%clk 0:00:04.5]} 48. Ke4 {[%clk 0:00:11.7]}
48... Nc3+ {[%clk 0:00:05.4]} 49. Kd3 {[%clk 0:00:12.3]} 49... Nxa4 {[%clk
0:00:06.3]} 50. Kc4 {[%clk 0:00:10.3]} 50... Rxh2 {[%clk 0:00:06.2]} 51. Kb4
{[%clk 0:00:10.9]} 51... Nb6 {[%clk 0:00:05.6]} 52. a4 {[%clk 0:00:09.8]} 52...
Nd5+ {[%clk 0:00:05.7]} 53. Kb5 {[%clk 0:00:10.2]} 53... Rb2+ {[%clk 0:00:05.2]}
54. Kc5 {[%clk 0:00:09.9]} 54... Nxe3 {[%clk 0:00:05.6]} 55. a5 {[%clk
0:00:09.9]} 55... Nf5 {[%clk 0:00:04.6]} 56. a6 {[%clk 0:00:09.2]} 56... Nxg3
{[%clk 0:00:03.5]} 57. Nc4 {[%clk 0:00:07.6]} 57... Ra2 {[%clk 0:00:03.5]} 58.
Kb6 {[%clk 0:00:08.2]} 58... h4 {[%clk 0:00:03.9]} 59. Na5 {[%clk 0:00:08.3]}
59... Rb2+ {[%clk 0:00:02.6]} 60. Kc7 {[%clk 0:00:08.8]} 60... Rc2+ {[%clk
0:00:02.6]} 61. Kb7 {[%clk 0:00:09.4]} 61... Rb2+ {[%clk 0:00:01.6]} 62. Kc7
{[%clk 0:00:09.6]} 62... Rf2 {[%clk 0:00:02.3]} 63. a7 {[%clk 0:00:09.2]} 63...
Rf7+ {[%clk 0:00:02.3]} 64. Kb6 {[%clk 0:00:09.4]} 64... Rxa7 {[%clk 0:00:02.9]}
65. Kxa7 {[%clk 0:00:10.3]} 65... h3 {[%clk 0:00:03.5]} 0-1

[Event "*** Titled Tuesday Blitz"]
[Site "Chess.com"]
[Date "2020.11.10"]
[Round "10"]
[White "Nemsko"]
[Black "ehrenfeld"]
[Result "1-0"]
[WhiteElo "2370"]
[BlackElo "2463"]
[TimeControl "180+1"]
[EndTime "12:03:39 PST"]
[Termination "Nemsko won on time"]

1. e4 {[%clk 0:03:00.9]} 1... d6 {[%clk 0:02:59.4]} 2. d4 {[%clk 0:03:00.4]}
2... g6 {[%clk 0:02:59.1]} 3. Nc3 {[%clk 0:03:00.2]} 3... Bg7 {[%clk 0:02:58.8]}
4. Be3 {[%clk 0:02:58.8]} 4... a6 {[%clk 0:02:58.4]} 5. Qd2 {[%clk 0:02:57.6]}
5... b5 {[%clk 0:02:55.7]} 6. O-O-O {[%clk 0:02:54.1]} 6... Bb7 {[%clk
0:02:52.9]} 7. f3 {[%clk 0:02:54]} 7... Nd7 {[%clk 0:02:52.2]} 8. h4 {[%clk
0:02:51.1]} 8... h5 {[%clk 0:02:51.7]} 9. Nh3 {[%clk 0:02:49.3]} 9... e6 {[%clk
0:02:48.5]} 10. Kb1 {[%clk 0:02:39.6]} 10... Ngf6 {[%clk 0:02:44.5]} 11. Ng5
{[%clk 0:02:24.9]} 11... Qe7 {[%clk 0:02:43.2]} 12. Qf2 {[%clk 0:02:10.1]} 12...
Rc8 {[%clk 0:02:41.4]} 13. Be2 {[%clk 0:02:01.9]} 13... c5 {[%clk 0:02:39.2]}
14. d5 {[%clk 0:01:54.9]} 14... exd5 {[%clk 0:02:29.7]} 15. Nxd5 {[%clk
0:01:53]} 15... Bxd5 {[%clk 0:02:28.9]} 16. exd5 {[%clk 0:01:53.9]} 16... O-O
{[%clk 0:02:23.3]} 17. Rhe1 {[%clk 0:01:42.7]} 17... Nb6 {[%clk 0:02:19.2]} 18.
Bc1 {[%clk 0:01:37.3]} 18... Qc7 {[%clk 0:02:12]} 19. g4 {[%clk 0:01:31.4]}
19... Rfe8 {[%clk 0:01:45.4]} 20. gxh5 {[%clk 0:01:09.7]} 20... Nxh5 {[%clk
0:01:44.8]} 21. f4 {[%clk 0:01:08.2]} 21... Nf6 {[%clk 0:01:41.7]} 22. f5 {[%clk
0:00:51.1]} 22... gxf5 {[%clk 0:01:39.7]} 23. Qxf5 {[%clk 0:00:49.2]} 23... Qd7
{[%clk 0:01:37.5]} 24. Qf3 {[%clk 0:00:44.5]} 24... Re5 {[%clk 0:01:25.4]} 25.
h5 {[%clk 0:00:39.3]} 25... Qf5 {[%clk 0:01:20.7]} 26. Qg2 {[%clk 0:00:27.6]}
26... Rce8 {[%clk 0:01:07.7]} 27. h6 {[%clk 0:00:20.8]} 27... Rxe2 {[%clk
0:00:45.6]} 28. Rxe2 {[%clk 0:00:19.7]} 28... Rxe2 {[%clk 0:00:45.4]} 29. Qxe2
{[%clk 0:00:20.6]} 29... Bxh6 {[%clk 0:00:45.4]} 30. Rg1 {[%clk 0:00:19.7]}
30... Bg7 {[%clk 0:00:35.3]} 31. Qg2 {[%clk 0:00:15.6]} 31... Qg6 {[%clk
0:00:26.8]} 32. Nh3 {[%clk 0:00:10.1]} 32... Qxg2 {[%clk 0:00:26.3]} 33. Rxg2
{[%clk 0:00:11]} 33... Kf8 {[%clk 0:00:26.5]} 34. Nf4 {[%clk 0:00:10.4]} 34...
Nbxd5 {[%clk 0:00:26.3]} 35. Nxd5 {[%clk 0:00:11.3]} 35... Nxd5 {[%clk
0:00:26.4]} 36. Rd2 {[%clk 0:00:11.5]} 36... Nb4 {[%clk 0:00:20]} 37. Rxd6
{[%clk 0:00:11.5]} 37... Be5 {[%clk 0:00:19.7]} 38. Rd8+ {[%clk 0:00:10.1]}
38... Ke7 {[%clk 0:00:19.4]} 39. Rc8 {[%clk 0:00:09.9]} 39... Bd6 {[%clk
0:00:18.1]} 40. a3 {[%clk 0:00:09.6]} 40... Nd5 {[%clk 0:00:17.6]} 41. Ra8
{[%clk 0:00:09.5]} 41... f5 {[%clk 0:00:17]} 42. Rxa6 {[%clk 0:00:08.7]} 42...
f4 {[%clk 0:00:17.1]} 43. Bd2 {[%clk 0:00:08.3]} 43... f3 {[%clk 0:00:17.1]} 44.
Be1 {[%clk 0:00:08.9]} 44... Ne3 {[%clk 0:00:11.3]} 45. Ra7+ {[%clk 0:00:06.8]}
45... Ke6 {[%clk 0:00:10.9]} 46. Ra8 {[%clk 0:00:05.2]} 46... Ng4 {[%clk
0:00:09.1]} 47. Re8+ {[%clk 0:00:05]} 47... Kf5 {[%clk 0:00:07.8]} 48. Rd8
{[%clk 0:00:03.3]} 48... Be5 {[%clk 0:00:06.7]} 49. Rd5 {[%clk 0:00:03.1]} 49...
Ke4 {[%clk 0:00:06.4]} 50. Rd8 {[%clk 0:00:02.9]} 50... f2 {[%clk 0:00:05.8]}
51. Bxf2 {[%clk 0:00:02.7]} 51... Nxf2 {[%clk 0:00:06]} 52. Rc8 {[%clk
0:00:02.8]} 52... Bd4 {[%clk 0:00:04.9]} 53. Re8+ {[%clk 0:00:02.5]} 53... Kd5
{[%clk 0:00:04.6]} 54. c3 {[%clk 0:00:02.5]} 54... Be5 {[%clk 0:00:03.1]} 55.
Rd8+ {[%clk 0:00:02.5]} 55... Kc6 {[%clk 0:00:02.6]} 56. Kc2 {[%clk 0:00:03.2]}
56... Ne4 {[%clk 0:00:02]} 57. Re8 {[%clk 0:00:03.4]} 57... Kd5 {[%clk
0:00:02.3]} 58. Rd8+ {[%clk 0:00:03.8]} 58... Nd6 {[%clk 0:00:01.9]} 59. b3
{[%clk 0:00:03.8]} 59... Kc6 {[%clk 0:00:02.1]} 60. Rg8 {[%clk 0:00:03.4]} 60...
c4 {[%clk 0:00:01.5]} 61. bxc4 {[%clk 0:00:03.4]} 61... bxc4 {[%clk 0:00:01]}
62. Rg6 {[%clk 0:00:03.7]} 62... Kd5 {[%clk 0:00:01]} 63. a4 {[%clk 0:00:03.8]}
63... Ne4 {[%clk 0:00:01.2]} 64. a5 {[%clk 0:00:02.8]} 64... Bxc3 {[%clk
0:00:01.1]} 65. a6 {[%clk 0:00:03]} 65... Bd4 {[%clk 0:00:01.2]} 66. Rh6 {[%clk
0:00:02.3]} 1-0

[Event "*** Titled Tuesday Blitz"]
[Site "Chess.com"]
[Date "2020.11.10"]
[Round "10"]
[White "Anton_Demchenko"]
[Black "olksuna"]
[Result "1-0"]
[WhiteElo "2832"]
[BlackElo "2639"]
[TimeControl "180+1"]
[EndTime "12:03:42 PST"]
[Termination "Anton_Demchenko won by resignation"]

1. e4 {[%clk 0:03:00.9]} 1... e5 {[%clk 0:03:00.1]} 2. Nf3 {[%clk 0:03:01.3]}
2... Nc6 {[%clk 0:03:00.8]} 3. Bc4 {[%clk 0:03:01.5]} 3... Nf6 {[%clk
0:02:59.9]} 4. d3 {[%clk 0:03:02.4]} 4... Be7 {[%clk 0:02:59.2]} 5. O-O {[%clk
0:03:01.8]} 5... O-O {[%clk 0:02:59.1]} 6. Re1 {[%clk 0:03:02.7]} 6... d6 {[%clk
0:02:58.3]} 7. a4 {[%clk 0:03:01.1]} 7... a5 {[%clk 0:02:58.4]} 8. h3 {[%clk
0:02:59.7]} 8... h6 {[%clk 0:02:58.1]} 9. c3 {[%clk 0:02:59.4]} 9... Nh7 {[%clk
0:02:58]} 10. d4 {[%clk 0:02:58.5]} 10... Ng5 {[%clk 0:02:56.1]} 11. Nbd2 {[%clk
0:02:55.4]} 11... Bf6 {[%clk 0:02:54.7]} 12. Nxg5 {[%clk 0:02:36.6]} 12... Bxg5
{[%clk 0:02:53.2]} 13. Nf3 {[%clk 0:02:33.2]} 13... Bxc1 {[%clk 0:02:53.2]} 14.
Rxc1 {[%clk 0:02:34.1]} 14... Qf6 {[%clk 0:02:53.5]} 15. Bb5 {[%clk 0:02:31.6]}
15... Ne7 {[%clk 0:02:44.3]} 16. Nh2 {[%clk 0:02:03.3]} 16... Ng6 {[%clk
0:02:39.3]} 17. Re3 {[%clk 0:01:59.1]} 17... Nf4 {[%clk 0:02:30.1]} 18. Ng4
{[%clk 0:01:47.4]} 18... Qg5 {[%clk 0:02:10.1]} 19. Rg3 {[%clk 0:01:47.1]} 19...
Nh5 {[%clk 0:02:09.8]} 20. Nf6+ {[%clk 0:01:22.2]} 20... Qxf6 {[%clk 0:02:09.5]}
21. Qxh5 {[%clk 0:01:22.8]} 21... c6 {[%clk 0:01:51.5]} 22. Bf1 {[%clk
0:01:17.5]} 22... Be6 {[%clk 0:01:47]} 23. Rd1 {[%clk 0:01:14]} 23... Kh7 {[%clk
0:01:32]} 24. Rdd3 {[%clk 0:01:09.5]} 24... g6 {[%clk 0:01:29.4]} 25. Qd1 {[%clk
0:01:09.4]} 25... Rad8 {[%clk 0:01:11.4]} 26. Rgf3 {[%clk 0:01:06]} 26... Qe7
{[%clk 0:01:05.3]} 27. Rfe3 {[%clk 0:01:06]} 27... Qf6 {[%clk 0:00:52.9]} 28.
Rd2 {[%clk 0:01:05.8]} 28... Rfe8 {[%clk 0:00:45.2]} 29. g3 {[%clk 0:01:05.8]}
29... Kg7 {[%clk 0:00:44.7]} 30. Bg2 {[%clk 0:01:05.2]} 30... h5 {[%clk
0:00:43.7]} 31. h4 {[%clk 0:01:02.9]} 31... Bc4 {[%clk 0:00:40.3]} 32. b3 {[%clk
0:00:55.9]} 32... Be6 {[%clk 0:00:36.1]} 33. c4 {[%clk 0:00:56.2]} 33... c5
{[%clk 0:00:30.5]} 34. dxc5 {[%clk 0:00:38.2]} 34... dxc5 {[%clk 0:00:30]} 35.
Red3 {[%clk 0:00:39.1]} 35... Rd4 {[%clk 0:00:29.2]} 36. Rxd4 {[%clk 0:00:39.5]}
36... cxd4 {[%clk 0:00:28.8]} 37. Rd3 {[%clk 0:00:39.8]} 37... Qe7 {[%clk
0:00:26.8]} 38. Qd2 {[%clk 0:00:39]} 38... f6 {[%clk 0:00:26.7]} 39. Qxa5 {[%clk
0:00:38.1]} 39... Bg4 {[%clk 0:00:16.6]} 40. Qd2 {[%clk 0:00:34.6]} 40... Qa3
{[%clk 0:00:16.3]} 41. Kh2 {[%clk 0:00:34.2]} 41... Qc5 {[%clk 0:00:14.9]} 42.
Qb2 {[%clk 0:00:31.7]} 42... b6 {[%clk 0:00:14.7]} 43. Rd2 {[%clk 0:00:31.3]}
43... Rc8 {[%clk 0:00:14.3]} 44. f3 {[%clk 0:00:30.5]} 44... Be6 {[%clk
0:00:13.7]} 45. Bf1 {[%clk 0:00:30.5]} 45... Qb4 {[%clk 0:00:13.9]} 46. Rc2
{[%clk 0:00:29.6]} 46... Rd8 {[%clk 0:00:13.1]} 47. Bd3 {[%clk 0:00:28.8]} 47...
Qe1 {[%clk 0:00:11.8]} 48. Re2 {[%clk 0:00:24.5]} 48... Qf1 {[%clk 0:00:09.9]}
49. Qd2 {[%clk 0:00:10.5]} 49... Qh3+ {[%clk 0:00:09.6]} 50. Kg1 {[%clk
0:00:11.4]} 50... Qxg3+ {[%clk 0:00:10.5]} 51. Rg2 {[%clk 0:00:10.8]} 51... Qxh4
{[%clk 0:00:11.4]} 52. Qb4 {[%clk 0:00:06.1]} 52... Kh6 {[%clk 0:00:09.2]} 53.
Qe7 {[%clk 0:00:04.4]} 53... Qe1+ {[%clk 0:00:08.7]} 54. Bf1 {[%clk 0:00:04.8]}
54... Bh3 {[%clk 0:00:02.6]} 55. Qxd8 {[%clk 0:00:03.3]} 55... Bxg2 {[%clk
0:00:02.4]} 56. Kxg2 {[%clk 0:00:04.2]} 56... Kg5 {[%clk 0:00:02.6]} 57. Qxb6
{[%clk 0:00:03.5]} 57... h4 {[%clk 0:00:01.9]} 58. Qd8 {[%clk 0:00:03]} 58...
Qg3+ {[%clk 0:00:02.4]} 59. Kh1 {[%clk 0:00:02.7]} 59... Qxf3+ {[%clk
0:00:03.3]} 60. Kg1 {[%clk 0:00:03]} 60... Qf2+ {[%clk 0:00:04.2]} 61. Kxf2
{[%clk 0:00:03.2]} 1-0

[Event "*** Titled Tuesday Blitz"]
[Site "Chess.com"]
[Date "2020.11.10"]
[Round "10"]
[White "exoticprincess"]
[Black "Karateloru"]
[Result "0-1"]
[WhiteElo "2866"]
[BlackElo "2760"]
[TimeControl "180+1"]
[EndTime "12:03:45 PST"]
[Termination "Karateloru won on time"]

1. e4 {[%clk 0:03:00.9]} 1... c5 {[%clk 0:02:56.5]} 2. d4 {[%clk 0:03:00.4]}
2... cxd4 {[%clk 0:02:56.3]} 3. c3 {[%clk 0:03:00.3]} 3... e6 {[%clk 0:02:51.6]}
4. cxd4 {[%clk 0:02:59.2]} 4... d5 {[%clk 0:02:50.7]} 5. e5 {[%clk 0:02:56.7]}
5... Nc6 {[%clk 0:02:50.1]} 6. Nc3 {[%clk 0:02:56.6]} 6... f6 {[%clk 0:02:47.4]}
7. Nf3 {[%clk 0:02:55.6]} 7... fxe5 {[%clk 0:02:38.3]} 8. Bb5 {[%clk 0:02:55.6]}
8... Bd7 {[%clk 0:02:32.8]} 9. Bxc6 {[%clk 0:02:53.2]} 9... Bxc6 {[%clk
0:02:33]} 10. Nxe5 {[%clk 0:02:54.1]} 10... Nf6 {[%clk 0:02:33.4]} 11. O-O
{[%clk 0:02:54.1]} 11... Bd6 {[%clk 0:02:31.9]} 12. Re1 {[%clk 0:02:54.1]} 12...
Bxe5 {[%clk 0:02:27.4]} 13. Rxe5 {[%clk 0:02:52.3]} 13... Bd7 {[%clk 0:02:27.1]}
14. Bf4 {[%clk 0:02:46.8]} 14... O-O {[%clk 0:02:26.8]} 15. Re3 {[%clk
0:02:46.4]} 15... Qe7 {[%clk 0:02:18.9]} 16. Be5 {[%clk 0:02:45.8]} 16... Be8
{[%clk 0:02:17.8]} 17. Qe2 {[%clk 0:02:36.6]} 17... Qd7 {[%clk 0:02:12.3]} 18.
Re1 {[%clk 0:02:35.3]} 18... Bf7 {[%clk 0:02:01.3]} 19. h3 {[%clk 0:02:34.3]}
19... Rae8 {[%clk 0:01:58.9]} 20. Rg3 {[%clk 0:02:33.5]} 20... Bg6 {[%clk
0:01:58.4]} 21. Re3 {[%clk 0:02:32.2]} 21... Ne4 {[%clk 0:01:57]} 22. f3 {[%clk
0:02:28.5]} 22... Nxc3 {[%clk 0:01:54.7]} 23. Rxc3 {[%clk 0:02:28.8]} 23... Rc8
{[%clk 0:01:53.7]} 24. Kh2 {[%clk 0:02:19.8]} 24... Rxc3 {[%clk 0:01:51.9]} 25.
bxc3 {[%clk 0:02:19]} 25... Rc8 {[%clk 0:01:52.4]} 26. Qd2 {[%clk 0:02:16.3]}
26... h6 {[%clk 0:01:49.1]} 27. Re3 {[%clk 0:02:13]} 27... Kh7 {[%clk
0:01:43.2]} 28. g4 {[%clk 0:02:12]} 28... Qb5 {[%clk 0:01:38.5]} 29. h4 {[%clk
0:02:11.1]} 29... Qb1 {[%clk 0:01:37.6]} 30. h5 {[%clk 0:02:09.8]} 30... Bc2
{[%clk 0:01:32.2]} 31. Re2 {[%clk 0:01:59.7]} 31... Bd3 {[%clk 0:01:31.6]} 32.
Rg2 {[%clk 0:01:53.8]} 32... Bf1 {[%clk 0:01:19.5]} 33. Rg1 {[%clk 0:01:31.2]}
33... Qd3 {[%clk 0:01:14.3]} 34. Qf2 {[%clk 0:01:31.1]} 34... Be2 {[%clk
0:01:11.9]} 35. Re1 {[%clk 0:01:31.2]} 35... Bd1 {[%clk 0:01:06.2]} 36. Re3
{[%clk 0:01:27.7]} 36... Qc2 {[%clk 0:01:05.9]} 37. Kg3 {[%clk 0:01:23.3]} 37...
Qxf2+ {[%clk 0:01:02.1]} 38. Kxf2 {[%clk 0:01:24.2]} 38... Kg8 {[%clk
0:01:01.8]} 39. Ke1 {[%clk 0:01:21.6]} 39... Ba4 {[%clk 0:01:00.8]} 40. f4
{[%clk 0:01:17.7]} 40... Bd7 {[%clk 0:00:59.2]} 41. Kd2 {[%clk 0:01:17.5]} 41...
Rc6 {[%clk 0:00:55.3]} 42. g5 {[%clk 0:01:12.3]} 42... Be8 {[%clk 0:00:48]} 43.
Rg3 {[%clk 0:01:09.6]} 43... Bxh5 {[%clk 0:00:44.8]} 44. gxh6 {[%clk 0:01:08.8]}
44... g6 {[%clk 0:00:45.4]} 45. Bf6 {[%clk 0:00:54.5]} 45... Kh7 {[%clk
0:00:41.4]} 46. Bg5 {[%clk 0:00:53.9]} 46... Ra6 {[%clk 0:00:41.5]} 47. f5
{[%clk 0:00:28.6]} 47... Rxa2+ {[%clk 0:00:34.4]} 48. Kd3 {[%clk 0:00:29]} 48...
gxf5 {[%clk 0:00:34.3]} 49. Re3 {[%clk 0:00:20.1]} 49... Bf7 {[%clk 0:00:33.2]}
50. Bf4 {[%clk 0:00:16.3]} 50... Rf2 {[%clk 0:00:32.7]} 51. Rg3 {[%clk 0:00:16]}
51... Bg6 {[%clk 0:00:30.3]} 52. Ke3 {[%clk 0:00:14.7]} 52... Rb2 {[%clk
0:00:29.8]} 53. Bc7 {[%clk 0:00:10.2]} 53... b6 {[%clk 0:00:26.5]} 54. Kf4
{[%clk 0:00:10]} 54... Re2 {[%clk 0:00:25.9]} 55. Kg5 {[%clk 0:00:09.4]} 55...
Re4 {[%clk 0:00:23.8]} 56. Kf6 {[%clk 0:00:08.8]} 56... Rg4 {[%clk 0:00:20.5]}
57. Re3 {[%clk 0:00:09.1]} 57... Bh5 {[%clk 0:00:17.1]} 58. Ke7 {[%clk
0:00:04.5]} 58... f4 {[%clk 0:00:16.6]} 59. Rxe6 {[%clk 0:00:03.5]} 59... f3
{[%clk 0:00:16.9]} 60. Rf6 {[%clk 0:00:03.9]} 60... Re4+ {[%clk 0:00:17.1]} 61.
Kf8 {[%clk 0:00:04.1]} 61... Re2 {[%clk 0:00:16.8]} 62. Be5 {[%clk 0:00:01.1]}
62... f2 {[%clk 0:00:16.3]} 63. Ke7 {[%clk 0:00:01.2]} 63... Bg6 {[%clk
0:00:16.1]} 0-1

[Event "*** Titled Tuesday Blitz"]
[Site "Chess.com"]
[Date "2020.11.10"]
[Round "10"]
[White "andrzej"]
[Black "hypert"]
[Result "1-0"]
[WhiteElo "2394"]
[BlackElo "2458"]
[TimeControl "180+1"]
[EndTime "12:03:45 PST"]
[Termination "andrzej won by resignation"]

1. e4 {[%clk 0:03:00.9]} 1... c5 {[%clk 0:02:59.5]} 2. Nf3 {[%clk 0:03:01.3]}
2... a6 {[%clk 0:03:00]} 3. c3 {[%clk 0:03:00.2]} 3... e6 {[%clk 0:02:59.8]} 4.
d4 {[%clk 0:02:59.4]} 4... d5 {[%clk 0:03:00.4]} 5. e5 {[%clk 0:02:59.7]} 5...
Bd7 {[%clk 0:03:00.7]} 6. Bd3 {[%clk 0:02:56.1]} 6... Bb5 {[%clk 0:03:00]} 7.
O-O {[%clk 0:02:53]} 7... Bxd3 {[%clk 0:02:59.5]} 8. Qxd3 {[%clk 0:02:53.9]}
8... Nc6 {[%clk 0:02:59.3]} 9. Bf4 {[%clk 0:02:51.3]} 9... Qb6 {[%clk
0:02:54.4]} 10. Qe2 {[%clk 0:02:45.5]} 10... cxd4 {[%clk 0:02:52.3]} 11. cxd4
{[%clk 0:02:46.4]} 11... Nge7 {[%clk 0:02:48]} 12. Nc3 {[%clk 0:02:40.9]} 12...
Nf5 {[%clk 0:02:47.9]} 13. Be3 {[%clk 0:02:39.3]} 13... h5 {[%clk 0:02:46.3]}
14. Rac1 {[%clk 0:02:34.9]} 14... Be7 {[%clk 0:02:45.2]} 15. Na4 {[%clk
0:02:34.2]} 15... Qb5 {[%clk 0:02:43.5]} 16. Qc2 {[%clk 0:02:13.5]} 16... Nb4
{[%clk 0:02:32.3]} 17. Qb3 {[%clk 0:02:10.2]} 17... Nc6 {[%clk 0:02:07.4]} 18.
Nc5 {[%clk 0:01:59.5]} 18... Bxc5 {[%clk 0:02:01.4]} 19. Rxc5 {[%clk 0:01:57.7]}
19... Qxb3 {[%clk 0:02:01.3]} 20. axb3 {[%clk 0:01:58.6]} 20... Kd7 {[%clk
0:02:01.5]} 21. Rfc1 {[%clk 0:01:56.1]} 21... Rhc8 {[%clk 0:01:57.1]} 22. Kf1
{[%clk 0:01:50.3]} 22... f6 {[%clk 0:01:52.6]} 23. exf6 {[%clk 0:01:45.7]} 23...
gxf6 {[%clk 0:01:52.3]} 24. Ke2 {[%clk 0:01:45.8]} 24... Rg8 {[%clk 0:01:44.4]}
25. g3 {[%clk 0:01:45.3]} 25... Rac8 {[%clk 0:01:39.2]} 26. h3 {[%clk
0:01:35.1]} 26... e5 {[%clk 0:01:28.5]} 27. dxe5 {[%clk 0:01:20.1]} 27... fxe5
{[%clk 0:01:27.5]} 28. Rxd5+ {[%clk 0:01:19.6]} 28... Ke6 {[%clk 0:01:25.8]} 29.
Rdc5 {[%clk 0:01:12.5]} 29... Nxe3 {[%clk 0:01:00.3]} 30. Kxe3 {[%clk
0:01:11.2]} 30... Rcd8 {[%clk 0:00:59.9]} 31. h4 {[%clk 0:01:02.9]} 31... Rg4
{[%clk 0:00:57.1]} 32. Ng5+ {[%clk 0:01:02.5]} 32... Kf5 {[%clk 0:00:55.9]} 33.
Nf7 {[%clk 0:00:47.2]} 33... Re4+ {[%clk 0:00:47.9]} 34. Kf3 {[%clk 0:00:38.7]}
34... Rd3+ {[%clk 0:00:42.1]} 35. Kg2 {[%clk 0:00:37.4]} 35... Re2 {[%clk
0:00:39.4]} 36. R1c3 {[%clk 0:00:24.5]} 36... Nb4 {[%clk 0:00:16.5]} 37. Nh6+
{[%clk 0:00:12.2]} 37... Ke6 {[%clk 0:00:14.5]} 38. R5c4 {[%clk 0:00:10.1]}
38... Rxb2 {[%clk 0:00:13.1]} 39. Rxd3 {[%clk 0:00:08.2]} 39... Nxd3 {[%clk
0:00:14]} 40. Rc8 {[%clk 0:00:06.6]} 40... Rxf2+ {[%clk 0:00:13.2]} 41. Kg1
{[%clk 0:00:07.2]} 41... Rb2 {[%clk 0:00:13.3]} 42. Re8+ {[%clk 0:00:04.7]}
42... Kd5 {[%clk 0:00:13.3]} 43. Nf7 {[%clk 0:00:04]} 43... Ke4 {[%clk
0:00:12.5]} 44. Ng5+ {[%clk 0:00:03.8]} 44... Ke3 {[%clk 0:00:12.5]} 45. Rf8
{[%clk 0:00:03.1]} 45... Rxb3 {[%clk 0:00:12.5]} 46. Rf3+ {[%clk 0:00:02.8]}
46... Ke2 {[%clk 0:00:13]} 47. Rf8 {[%clk 0:00:01.3]} 47... Rb1+ {[%clk
0:00:13.3]} 48. Kg2 {[%clk 0:00:02.1]} 48... a5 {[%clk 0:00:14]} 49. Ne4 {[%clk
0:00:02.1]} 49... a4 {[%clk 0:00:13.6]} 50. Nc3+ {[%clk 0:00:02.6]} 50... Ke3
{[%clk 0:00:13.6]} 51. Nxb1 {[%clk 0:00:03.5]} 51... b5 {[%clk 0:00:12.9]} 52.
Ra8 {[%clk 0:00:03.9]} 52... Nc5 {[%clk 0:00:11.1]} 53. Ra5 {[%clk 0:00:04]}
53... a3 {[%clk 0:00:08.8]} 54. Nxa3 {[%clk 0:00:02.8]} 54... Kd4 {[%clk
0:00:09.7]} 55. Nxb5+ {[%clk 0:00:02.1]} 55... Kc4 {[%clk 0:00:10.6]} 56. Nc7
{[%clk 0:00:02.9]} 56... Kb4 {[%clk 0:00:11.2]} 57. Rxc5 {[%clk 0:00:02.3]}
57... Kxc5 {[%clk 0:00:11.2]} 58. Kf3 {[%clk 0:00:02.9]} 58... Kd6 {[%clk
0:00:12.1]} 59. Nb5+ {[%clk 0:00:02.9]} 59... Ke6 {[%clk 0:00:12]} 60. Nc3
{[%clk 0:00:03.3]} 60... Kf5 {[%clk 0:00:12.9]} 61. Ne4 {[%clk 0:00:03.6]} 61...
Kg6 {[%clk 0:00:13.1]} 62. Ng5 {[%clk 0:00:03.5]} 62... Kf5 {[%clk 0:00:14]} 63.
Ne4 {[%clk 0:00:03.5]} 63... Kg6 {[%clk 0:00:14.7]} 64. Nf2 {[%clk 0:00:04.4]}
64... Kf5 {[%clk 0:00:15.6]} 65. Ke3 {[%clk 0:00:04.4]} 65... Kf6 {[%clk
0:00:15.3]} 66. Ke4 {[%clk 0:00:04.9]} 66... Ke6 {[%clk 0:00:16.2]} 67. Nd3
{[%clk 0:00:05.2]} 67... Kf6 {[%clk 0:00:16.7]} 68. Nxe5 {[%clk 0:00:06.1]}
68... Kg7 {[%clk 0:00:16.6]} 69. Nf3 {[%clk 0:00:07]} 69... Kh6 {[%clk
0:00:17.5]} 70. Kf4 {[%clk 0:00:07.4]} 70... Kg6 {[%clk 0:00:17]} 71. Ke5 {[%clk
0:00:07.4]} 71... Kh6 {[%clk 0:00:17.9]} 72. Kf5 {[%clk 0:00:08.3]} 72... Kg7
{[%clk 0:00:17.5]} 73. Kg5 {[%clk 0:00:08.9]} 1-0